{"text_format":"3","workbook":"xlsx","n_sheets":3,"sheets":["MDNG","Translation","Selections"],"not_rendered":{"images":3,"defined_names":2,"comments":1},"read":"whole","date_system":"1900"}

{"sheet":"MDNG","index":0,"n_rows":88,"n_cols":56,"rows_kept":88,"merged":[[0,43,0,46],[0,48,0,51],[0,53,0,56],[3,0,4,56],[5,0,5,56],[7,28,7,34],[7,35,7,43],[8,1,9,24],[8,30,9,32],[8,38,9,40],[8,46,9,48],[8,49,9,51],[11,1,12,27],[14,1,15,5],[14,6,15,8],[17,51,25,52],[20,22,21,35],[20,40,25,41],[21,12,22,14],[22,49,23,50],[27,1,28,55],[32,4,32,5],[32,19,32,20],[33,32,33,33],[33,47,33,48],[41,33,41,43],[42,47,42,48],[47,33,47,47],[52,41,52,47],[53,41,53,47],[57,31,85,55],[77,15,77,21],[78,15,78,21],[83,15,83,21],[84,15,84,21],[87,0,88,51],[87,52,88,52],[87,53,88,54],[87,55,88,56]]}
[]
[]
[]
[{"$f":"UPPER(Translation!G9)","v":"DEUR VOOR ZIJ-INGANG NG"}]
[]
[{"$f":"Translation!G3","v":"Bestelformulier"}]
[]
[null,{"$f":"Translation!G10","v":"Ordernummer/ordernaam"},{"$nulls":26},{"$f":"Translation!G11","v":"Aantal stuks"},{"$nulls":6},{"$f":"Translation!G12","v":"Leveringsweek"}]
[{"$nulls":46},"NL"]
[]
[{"$nulls":30},{"$f":"Translation!G4","v":"Alles gespecificeerd van binnenuit gezien!"}]
[null,{"$f":"Translation!G214","v":"Bestelling op basis van de maten van het FRAME"}]
[]
[]
[null,{"$f":"Translation!G215&\" (W)\"","v":"Framebreedte (W)"},{"$nulls":18},{"$f":"Translation!G303","v":"Version of profiles"},{"$nulls":15},{"$f":"Translation!G275","v":"Informatie over de visuele uitvoering van ManDoor"}]
[{"$nulls":9},"mm",{"$nulls":12},{"$f":"Translation!G305","v":"60mm, gebroken koude brug"},{"$nulls":13},{"$f":"Translation!G276","v":"Zonder bovenlicht"},{"$nulls":9},{"$f":"Translation!G277","v":"Met bovenlicht"}]
[{"$nulls":22},{"$f":"Translation!G304","v":"45mm, niet gebroken koude brug"},{"$nulls":13},"H <= 2500 mm",{"$nulls":9},"H > 2500 mm"]
[{"$nulls":51},{"$f":"AU17","v":"H > 2500 mm"}]
[{"$nulls":20},{"$f":"Translation!G229","v":"Plaatsing:"}]
[{"$nulls":22},{"$f":"Translation!G230","v":"in de opening"}]
[{"$nulls":12},{"$f":"Translation!G216&\" (H)\"","v":"Framehoogte (H)"},{"$nulls":9},{"$f":"Translation!G231&\" (\"&Translation!G306&\" \"&Translation!G304&\")\"","v":"achter de opening (alleen voor 45mm, niet gebroken koude brug)"},{"$nulls":17},{"$f":"AK17","v":"H <= 2500 mm"}]
[]
[{"$nulls":15},"mm",{"$nulls":33},2125]
[]
[]
[]
[]
[null,{"$f":"Translation!G280","v":"Wanneer de wens er is om een deur er gelijk uit te laten zien met een andere deur, geef dan duidelijk aan voor welke deur (order/positie)."}]
[]
[{"$nulls":3},{"$f":"Translation!G263","v":"MD 01"},{"$nulls":13},{"$f":"Translation!G264","v":"MD 02"},{"$nulls":13},{"$f":"Translation!G265","v":"MD 03"},{"$nulls":13},{"$f":"Translation!G266","v":"MD 04"}]
[{"$nulls":3},{"$f":"Translation!G53&Translation!G233","v":"Openingsrichting: naar buiten"},{"$nulls":13},{"$f":"Translation!G53&Translation!G233","v":"Openingsrichting: naar buiten"},{"$nulls":13},{"$f":"Translation!G53&Translation!G234","v":"Openingsrichting: naar binnen"},{"$nulls":13},{"$f":"Translation!G53&Translation!G234","v":"Openingsrichting: naar binnen"}]
[{"$nulls":3},{"$f":"\"DIN: \"&Translation!G15","v":"DIN: Rechts"},{"$nulls":6},{"$f":"Translation!G65","v":"Buiten"},{"$nulls":6},{"$f":"\"DIN: \"&Translation!G14","v":"DIN: Links"},{"$nulls":6},{"$f":"Translation!G65","v":"Buiten"},{"$nulls":6},{"$f":"\"DIN: \"&Translation!G14","v":"DIN: Links"},{"$nulls":6},{"$f":"Translation!G65","v":"Buiten"},{"$nulls":6},{"$f":"\"DIN: \"&Translation!G15","v":"DIN: Rechts"},{"$nulls":6},{"$f":"Translation!G65","v":"Buiten"}]
[]
[]
[{"$nulls":10},{"$f":"Translation!G66","v":"Binnen"},{"$nulls":13},{"$f":"Translation!G66","v":"Binnen"},{"$nulls":13},{"$f":"Translation!G66","v":"Binnen"},{"$nulls":13},{"$f":"Translation!G66","v":"Binnen"}]
[]
[null,{"$f":"Translation!G67","v":"Type handvat en slot"},{"$nulls":29},{"$f":"Translation!G75","v":"Vensters"}]
[]
[{"$nulls":3},"MDKL 01",null,null,{"$f":"Translation!G285","v":"Deurkruk/deurkruk, schild, cilinder sleutel/sleutel, standaard-slot"},{"$nulls":26},1,{"$f":"AH39+1","v":2},{"$f":"AI39+1","v":3},4,5,6,7,8,9,10]
[{"$nulls":3},"MDKL 02",null,null,{"$f":"Translation!G286","v":"Vast handgreep/deurkruk, schild, cilinder sleutel/sleutel, standaard-slot"},{"$nulls":25},{"$f":"Translation!G73","v":"Secties"}]
[{"$nulls":3},"MDKL 05",null,null,{"$f":"Translation!G287","v":"Deurkruk/deurkruk, schild, cilinder sleutel/sleutel, paniek slot"},{"$nulls":26},{"$f":"Translation!G117","v":"Type venster"}]
[{"$nulls":3},"MDKL 06",null,null,{"$f":"Translation!G288","v":"Vast handgreep/deurkruk, cilinder sleutel/sleutel, schild, paniek slot"}]
[{"$nulls":3},"MDKL 13",null,null,{"$f":"Translation!G289","v":"Deurkruk/paniek balk, schild, cilinder sleutel/sleutel"}]
[{"$nulls":3},"MDKL 14",null,null,{"$f":"Translation!G290","v":"Vast handgreep/paniek balk, schild, cilinder sleutel/sleutel"},{"$nulls":24},{"$f":"Translation!G92","v":"Full Vision-sectie"}]
[{"$nulls":3},"MDKL 15",null,null,{"$f":"Translation!G291","v":"Deurkruk/deurkruk, schild, cilinder sleutel/sleutel, 3 puntslot"},{"$nulls":26},1,{"$f":"AH45+1","v":2},{"$f":"AI45+1","v":3},4,5,6,7,8,9,10]
[{"$nulls":3},"MDKL 16",null,null,{"$f":"Translation!G292","v":"Vast handgreep/deurkruk, schild, cilinder sleutel/sleutel, 3 puntslot"},{"$nulls":25},{"$f":"Translation!G73","v":"Secties"}]
[{"$nulls":33},{"$f":"Translation!G114","v":"Type beglazing"}]
[null,{"$f":"Translation!G282","v":"Elektrisch slot"},{"$nulls":12},{"$f":"Translation!G278","v":"Deurveer/dranger"}]
[{"$nulls":3},{"$f":"Translation!G59","v":"Ja"},{"$nulls":12},{"$f":"Translation!G279","v":"Ja, met schuifarm"}]
[{"$nulls":3},{"$f":"Translation!G284","v":"alleen voor MDKL02, MDKL06"},{"$nulls":27},{"$f":"Translation!G70","v":"Kleur van Full Vision frame"}]
[{"$nulls":33},{"$f":"Translation!G60","v":"RAL"},{"$nulls":5},{"$f":"Translation!G61","v":"NCS"}]
[{"$nulls":41},{"$f":"Translation!G62","v":"Tint (code)"}]
[{"$nulls":33},{"$f":"Translation!G63","v":"Kleur buitenkant"}]
[null,{"$f":"Translation!G32","v":"Lamel stucwerk"},{"$nulls":7},{"$f":"Translation!G33","v":"Lamel glad"},{"$nulls":9},{"$f":"Translation!G35","v":"Centrale groef houtnerf"},{"$nulls":13},{"$f":"Translation!G64","v":"Kleur binnenkant"}]
[{"$nulls":3},"671; 9002/9010",{"$nulls":7},"695;",{"$f":"Translation!G166","v":"Notenhout/9010"},{"$nulls":8},"660;","9016/9010"]
[{"$nulls":3},"672; 9010/9010",{"$nulls":7},"688;",{"$f":"Translation!G168","v":"Gouden eik/9010"},{"$nulls":8},"661;","7016/9010"]
[{"$nulls":3},"684; 9005/9010",{"$nulls":17},"662;","9005/9010",{"$nulls":8},{"$f":"Translation!G162","v":"Ruimte voor uw notities"}]
[{"$nulls":3},"673; 9006/9010",{"$nulls":5},{"$f":"Translation!G40","v":"Zonder groef houtnerf"}]
[{"$nulls":3},"694; 9007/9010",{"$nulls":7},"669; ","9016/9010",{"$nulls":6},{"$f":"Translation!G36","v":"Centrale groef glad"}]
[{"$nulls":3},"754; 1021/9010",{"$nulls":17},"663;",{"$f":"Translation!G173","v":"9016/9010"}]
[{"$nulls":3},"675; 3000/9010",{"$nulls":17},"665;",{"$f":"Translation!G168","v":"Gouden eik/9010"}]
[{"$nulls":3},"676; 5010/9010",{"$nulls":5},{"$f":"Translation!G38","v":"Zonder groef stucwerk"},{"$nulls":11},"666;",{"$f":"Translation!G174","v":"Donkere eik/9010"}]
[{"$nulls":3},"677; 6009/9010",{"$nulls":7},"699; ","9010/9010"]
[{"$nulls":3},"679; 8014/9010",{"$nulls":15},{"$f":"Translation!G34","v":"Lamel houtnerf"}]
[{"$nulls":3},"678; 7016/9010",{"$nulls":5},{"$f":"Translation!G39","v":"Zonder groef glad"},{"$nulls":11},"664;",{"$f":"Translation!G173","v":"9016/9010"}]
[{"$nulls":3},"533; 9010/9002",{"$nulls":7},"667; ","9016/9010"]
[{"$nulls":3},"531; 9002/9002",{"$nulls":7},"680; ","DB 703/9002",{"$nulls":6},{"$f":"Translation!G37","v":"V-profiel glad"}]
[{"$nulls":3},"532; 9006/9002",{"$nulls":7},"668; ","7016/9010",{"$nulls":8},"687;","9006/9010"]
[{"$nulls":3},"536; 9007/9002",{"$nulls":17},"682;","7016/9010"]
[{"$nulls":3},"534; 7016/9002",{"$nulls":17},"539;","9006/9002"]
[{"$nulls":3},"535; 5010/9002"]
[{"$nulls":3},"538; 8014/9002"]
[{"$nulls":3},"540; 7021/9002"]
[]
[null,{"$f":"Translation!G68","v":"Kleur van panelen"}]
[{"$nulls":3},{"$f":"Translation!G60","v":"RAL"},{"$nulls":6},{"$f":"Translation!G61","v":"NCS"}]
[{"$nulls":15},{"$f":"Translation!G62","v":"Tint (code)"}]
[{"$nulls":3},{"$f":"Translation!G63","v":"Kleur buitenkant"}]
[{"$nulls":3},{"$f":"Translation!G64","v":"Kleur binnenkant"}]
[]
[null,{"$f":"Translation!G240","v":"Kleur van frame-, vleugel- en bovenprofielen"}]
[{"$nulls":3},{"$f":"Translation!G60","v":"RAL"},{"$nulls":6},{"$f":"Translation!G61","v":"NCS"}]
[{"$nulls":15},{"$f":"Translation!G62","v":"Tint (code)"}]
[{"$nulls":3},{"$f":"Translation!G63","v":"Kleur buitenkant"}]
[{"$nulls":3},{"$f":"Translation!G64","v":"Kleur binnenkant"}]
[]
[]
[{"$f":"\"TOORS CZ s.r.o., Turkova 1338, 504 01 Nový Bydžov, \"&Translation!G2&\", T: +420 495 491 855,  F: +420 498 606 714, e-mail: toors@toors.cz, www.toors.cz\"","v":"TOORS CZ s.r.o., Turkova 1338, 504 01 Nový Bydžov, Tsjechische Republiek, T: +420 495 491 855,  F: +420 498 606 714, e-mail: toors@toors.cz, www.toors.cz"},{"$nulls":52},"rev.: ",null,2034]

{"sheet":"Translation","index":1,"n_rows":306,"n_cols":59,"rows_kept":306,"hidden":true}
[{"$nulls":6},{"$f":"IF(MDNG!AU9=I1,1,IF(MDNG!AU9=J1,2,IF(MDNG!AU9=K1,3,IF(MDNG!AU9=L1,4,IF(MDNG!AU9=M1,5,IF(MDNG!AU9=N1,6,\"Chyba\"))))))","v":5},null,"CZ","EN","DE","PL","NL","FR"]
[{"$nulls":6},{"$f":"VLOOKUP(I2,I:N,$G$1,FALSE)","v":"Tsjechische Republiek"},null,"Česká republika","Czech Republic","Tschechische Republik","Republika Czeska","Tsjechische Republiek","République tchèque"]
[{"$nulls":6},"Bestelformulier",null,"Objednávkový formulář","Order Form","Bestellformular","Formularz zamówienia","Bestelformulier","Formulaire de commande"]
[{"$nulls":6},"Alles gespecificeerd van binnenuit gezien!",null,"Vše specifikováno při pohledu zevnitř!","All views are interior views!","Alles ist bestimmt bei INNENANSICHT","Wszystko jest specyfikowane z widokiem od zewnątrz!","Alles gespecificeerd van binnenuit gezien!","Tout est specifié pour une vue de l’intérieur!"]
[{"$nulls":6},"Industriële deur",null,"Průmyslová vrata","Industrial door","Industrietor","Brama przemysłowa","Industriële deur","Les Portes Industrielles"]
[{"$nulls":6},"Garagedeur",null,"Garážová vrata","Garage door","Garagentor","Brama garażowa","Garagedeur","Porte de garage"]
[{"$nulls":6},"Tweevleugelige deur",null,"Dvoukřídlá vrata","Double leaf door","Zweiflüglig Tor","Brama dwuskrzydłowa","Tweevleugelige deur","Portail à deux battants"]
[{"$nulls":6},"Deur voor zij-ingang",null,"Boční vstupní dveře (ManDoor)","Side entrance door (ManDoor)","Nebeneingangstür (ManDoor)","Boczne drzwi wejściowe (ManDoor)","Deur voor zij-ingang","Porte d’entrée latérale (ManDoor)"]
[{"$nulls":6},"Deur voor zij-ingang NG",null,"Boční vstupní dveře (ManDoor NG)","Side entrance door (ManDoor NG)","Nebeneingangstür (ManDoor NG)","Boczne drzwi wejściowe (ManDoor NG)","Deur voor zij-ingang NG","Porte d’entrée latérale (ManDoor NG)"]
[{"$nulls":6},"Ordernummer/ordernaam",null,"Číslo/název objednávky","Order No. or name","Auftragsnummer","Nr/nazwa zamówienia","Ordernummer/ordernaam","Numéro/dénomination de la commande"]
[{"$nulls":6},"Aantal stuks",null,"Počet kusů","Quantity","Stückzahl","Ilość sztuk","Aantal stuks","Quantité"]
[{"$nulls":6},"Leveringsweek",null,"Dodací týden","Delivery week","Lieferwoche","Tydzień dostawy","Leveringsweek","Semaine de livraison"]
[{"$nulls":6},"Bekleding",null,"Ostění","Side room","Leibung","Węgarek","Bekleding","Chambranle"]
[{"$nulls":6},"Links",null,"Levé","Left","Links","Lewy","Links","Gauche"]
[{"$nulls":6},"Rechts",null,"Pravé","Right","Rechts","Prawy","Rechts","Droit"]
[{"$nulls":6},"Hoogte van de bovenste draagconstr.",null,"Výška překladu","Height of lintel","Sturzhöhe","Wysokość nadproża","Hoogte van de bovenste draagconstr.","Hauteur du linteau"]
[{"$nulls":6},"Breedte van de open. (B)",null,"Šířka otvoru (W)","Width of opening (W)","Lichte Breite","Szerokość otworu (W)","Breedte van de open. (B)","Largeur de l'ouverture (W)"]
[{"$nulls":6},"Hoogte van de opening (H)",null,"Výška otvoru (H)","Height of opening (H)","Lichte Höhe","Wysokość otworu (H)","Hoogte van de opening (H)","Hauteur de l'ouverture (H)"]
[{"$nulls":6},"Type geleiding",null,"Typ vedení","Lift type","Umlenkung (Beschlagstyp)","Rodzaj prowadzenia","Type geleiding","Type de guide"]
[{"$nulls":6},"Standaardgeleiding (min. 350 mm)",null,"Standardní vedení (min. 350 mm)","Standard lift (min. 350 mm)","Standardbeschlag SL 350","Prowad. standard. (min 350 mm)","Standaardgeleiding (min. 350 mm)","Guide standard (min. 350 mm)"]
[{"$nulls":6},"Standaardgeleiding (min. 420 mm)",null,"Standardní vedení (min. 420 mm)","Standard lift (min. 420 mm)","Standardbeschlag SL 420","Prowad. standard. (min 420 mm)","Standaardgeleiding (min. 420 mm)","Guide standard (min. 420 mm)"]
[{"$nulls":6},"Verhoogde geleiding",null,"Zvýšené vedení","High lift","Hochführung","Prowad. podwyższone","Verhoogde geleiding","Guide surélevé"]
[{"$nulls":6},"Verhoogde geleiding, T-deur",null,"Zvýšené vedení, T-door","High lift, T-Door","Hochführung - Federwelle unten","Prowad. podwyższone, T-door","Verhoogde geleiding, T-deur","Guide surélevé, T-door"]
[{"$nulls":6},"Verticale geleiding",null,"Vertikální vedení","Vertical lift","Vertikalbesch. - Senkrechtläufer","Prowad. pionowe","Verticale geleiding","Guide vertical"]
[{"$nulls":6},"Verticale geleiding, T-deur",null,"Vertikální vedení, T-Door","Vertical lift, T-Door","Vertikalbeschl. - Federwelle unt.","Prowad. pionowe, T-door","Verticale geleiding, T-deur","Guide vertical, T-Door"]
[{"$nulls":6},"Verlaagde geleiding (min. 200 mm)",null,"Snížené vedení (min. 200 mm)","Low lift (min. 200 mm)","Niedrigsturz (min. 200 mm)","Prowad. obniżone (min 200 mm)","Verlaagde geleiding (min. 200 mm)","Guide rabaissé (min. 200 mm)"]
[{"$nulls":6},"Verlaagde geleiding (min. 230 mm)",null,"Snížené vedení (min. 230 mm)","Low lift (min. 230 mm)","Niedrigsturz (min. 230 mm)","Prowad. obniżone (min 230 mm)","Verlaagde geleiding (min. 230 mm)","Guide rabaissé (min. 230 mm)"]
[{"$nulls":6},"Geleiding onder een hoek",null,"Vedení pod úhlem","Following the roof","Dachfolgebeschlag","Prowadzenie pod kątem","Geleiding onder een hoek","Guide oblique"]
[{"$nulls":6},"Renovatiesysteem",null,"Renovační systém","Renovation system","Renovierungssystem","System renowacyjny","Renovatiesysteem","Système de rénovation"]
[{"$nulls":6},"Verlaagde geleiding (min. 200 mm)",null,"Snížené vedení (min. 200 mm)","Low lift (min. 200 mm)","Niedrigsturz (min. 200 mm)","LHF-C Low Lift","LHF-C Low Lift","LHF-C Low Lift"]
[{"$nulls":6},"Verlaagde geleiding (min. 90 mm)",null,"Snížené vedení (min. 90 mm)","Low lift (min. 90 mm)","Niedrigsturz (min. 90 mm)","Prowad. obniżone (min 90 mm)","Verlaagde geleiding (min. 90 mm)","Guide rabaissé (min. 90 mm)"]
[{"$nulls":6},"Lamel stucwerk",null,"Lamela stucco","Lamella stucco","Lamelle stucco","Płytka stucco","Lamel stucwerk","Lamelle stucco"]
[{"$nulls":6},"Lamel glad",null,"Lamela hladká","Lamella smooth","Lamelle glatt","Płytka gładka","Lamel glad","Lamelle lisse"]
[{"$nulls":6},"Lamel houtnerf",null,"Lamela woodgrain","Lamella woodgrain","Lamelle Woodgrain","Płytka woodgrain","Lamel houtnerf","Lamelle woodgrain"]
[{"$nulls":6},"Centrale groef houtnerf",null,"Stř. drážka woodgrain","Central rib woodgrain","Mittelsicke Woodgrain","Przetłocz. centralne woodgr.","Centrale groef houtnerf","Rainure centrale woodgrain"]
[{"$nulls":6},"Centrale groef glad",null,"Stř. drážka hladká","Central rib smooth","Mittelsicke Glatt","Przetłocz. centralne gładka","Centrale groef glad","Rainure centrale lisse"]
[{"$nulls":6},"V-profiel glad",null,"V-profil hladká","V-profile smooth","V-Profil glatt ","V-profil gładka","V-profiel glad","Profilé en V lisse"]
[{"$nulls":6},"Zonder groef stucwerk",null,"Bez drážky stucco","Flat stucco","Ohne Sicke stucco","Bez przetłoczenia stucco","Zonder groef stucwerk","Sans rainure stucco"]
[{"$nulls":6},"Zonder groef glad",null,"Bez drážky hladká","Flat smooth","Ohne Sicke glatt","Bez przetłoczenia gładka","Zonder groef glad","Sans rainure lisse"]
[{"$nulls":6},"Zonder groef houtnerf",null,"Bez drážky woodgrain","Flat woodgrain","Ohne Sicke woodgrain","Bez przetłoczenia woodgrain","Zonder groef houtnerf","Sans rainure woodgrain"]
[{"$nulls":6},"Cassette houtnerf",null,"Kazeta woodgrain","Cassette woodgrain","Kasette Woodgrain","Kaseton woodgrain","Cassette houtnerf","Cassette woodgrain"]
[{"$nulls":6},"Anders:",null,"Jiný:","Other:","Anderes:","Inny:","Anders:","Autre :"]
[{"$nulls":6},"Toegangsdeur",null,"Vstupní dveře","Passdoor","Schlupftür","Drzwi wejściowe","Toegangsdeur","Porte d’entrée"]
[{"$nulls":6},"Drempelhoogte",null,"Výška prahu","Height of threshold","Höhe der Schwelle","Wysokość progu","Drempelhoogte","Hauteur du seuil"]
[{"$nulls":6},"Standaarddrempel (220 mm)",null,"Standardní práh (220 mm)","Standard threshold (220 mm)","Standardschwelle (220mm)","Standardowy próg (220 mm)","Standaarddrempel (220 mm)","Seuil standard (220 mm)"]
[{"$nulls":6},"Extra lage drempel (25 mm)",null,"Extra nízký práh (25 mm)","Extra Low Threshold (25 mm)","Extra niedrige Schwelle (25mm)","Ekstra niski próg (25 mm)","Extra lage drempel (25 mm)","Seuil extra-bas (25 mm)"]
[{"$nulls":6},"Contact van de deur",null,"Kontakt dveří","Passdoor contact","Schlupftürkontakt (Kabelausfürung)","Zestyki drzwi","Contact van de deur","Contact de la porte"]
[{"$nulls":6},"Plaatsing van de deur",null,"Umístění dveří","Position of passdoor","Position der Schlupftür","Umieszczenie drzwi","Plaatsing van de deur","Emplacement de la porte"]
[{"$nulls":6},"Links",null,"Vlevo","Left","Links","W lewo","Links","À gauche"]
[{"$nulls":6},"Midden",null,"Uprostřed","Middle","In der Mitte","Pośrodku","Midden","Au centre"]
[{"$nulls":6},"Rechts",null,"Vpravo","Right","Rechts","W prawo","Rechts","À droite"]
[{"$nulls":6},"Links en rechts",null,"Vlevo a vpravo","Left and Right","Links und rechts","W lewo i w prawo","Links en rechts","À gauche et à droite"]
[{"$nulls":6},"Openingsrichting",null,"Směr otevírání","Direction of opening","Öffnungsrichtung","Kierunek otwierania","Openingsrichting","Sens d’ouverture"]
[{"$nulls":6},"Scharnieren aan de linkerzijde",null,"panty na levé straně","hinges on left","Scharniere innen links","zawiasy po lewej stronie","Scharnieren aan de linkerzijde","charnières du côté gauche"]
[{"$nulls":6},"DIN rechts",null,"DIN pravé","DIN right","DIN rechts","DIN prawe","DIN rechts","DIN droit"]
[{"$nulls":6},"Scharnieren aan de rechterzijde",null,"panty na pravé straně","hinges on right","Scharniere innen rechts","zawiasy po prawej stronie","Scharnieren aan de rechterzijde","charnières du côté droit"]
[{"$nulls":6},"DIN links",null,"DIN levé","DIN left","DIN links","DIN lewe","DIN links","DIN à gauche"]
[{"$nulls":6},"Lakken van deurprofielen",null,"Lakování profilů dveří","Painting of passdoor profiles","Lackierung der Schlupftürprofile","Lakierowanie profilów drzwi","Lakken van deurprofielen","Peinture des profilés de la porte"]
[{"$nulls":6},"Ja",null,"Ano","Yes","Ja","Tak","Ja","Oui"]
[{"$nulls":6},"RAL",null,"RAL","RAL","RAL","RAL","RAL","RAL"]
[{"$nulls":6},"NCS",null,"NCS","NCS","NCS","NCS","NCS","NCS"]
[{"$nulls":6},"Tint (code)",null,"Odstín (kód)","Shade (code)","Farbton (Kode)","Odcień (kod)","Tint (code)","Teinte (code)"]
[{"$nulls":6},"Kleur buitenkant",null,"Externí lakování","External painting","Außenlackierung","Lakierowanie zewn.","Kleur buitenkant","Peinture extérieure"]
[{"$nulls":6},"Kleur binnenkant",null,"Interní lakování","Internal painting","Innenlackierung","Lakierowanie wewn.","Kleur binnenkant","Peinture intérieure"]
[{"$nulls":6},"Buiten",null,"Venku","Out","Außen","Na zewnątrz","Buiten","Extér."]
[{"$nulls":6},{"$f":"VLOOKUP(I66,I:N,$G$1,FALSE)","v":"Binnen"},null,"Uvnitř","In","Innen","Wewnątrz","Binnen","Intér."]
[{"$nulls":6},"Type handvat en slot",null,"Typ kliky a zámku","Type of handle and lock","Typ der Klinke","Rodzaj klamki i zamka","Type handvat en slot","Type de poignée et de serrure"]
[{"$nulls":6},"Kleur van panelen",null,"Lakování panelů","Painting of panels","Lackierung der Paneele","Lakierowanie paneli","Kleur van panelen","Peinture des panneaux"]
[{"$nulls":6},"Kleur van de onder- en bovenlat",null,"Lakování spodní a horní lišty","Painting of bottom and top profile","Lackierung der unteren Leiste","Lakierowanie listwy dolnej i górnej","Kleur van de onder- en bovenlat","Peinture des barres supérieure et infér."]
[{"$nulls":6},"Kleur van Full Vision frame",null,"Lakování Full Vision rámu","Painting of Full Visions' frame","Lackierung der Alu-Sektion","Lakierowanie ramy panoramicznej Full Vision","Kleur van Full Vision frame","Peinture du cadre Full Vision"]
[{"$nulls":6},"Kleur van de voering",null,"Lakování výplní","Painting of fillings","Lackierung der Füllung der Alu-Sektion","Lakierowanie wypełnienia","Kleur van de voering","Peinture des panneaux de remplissage"]
[{"$nulls":6},"Beglazing van secties",null,"Prosklení sekcí","Glazing of sections","Verglasung","Przeszklenie sekcji","Beglazing van secties","Vitrage des sections"]
[{"$nulls":6},"Secties",null,"Sekce","Section","Sektion","Sekcje","Secties","Sections"]
[{"$nulls":6},"Aantal in één sectie",null,"Počet v jedné sekci","Quantity per 1 section","Stückzahl in einer Sektion","Ilość w jednej sekcji","Aantal in één sectie","Nombre par section"]
[{"$nulls":6},"Vensters",null,"Okna","Windows","Fenster","Okna","Vensters","Fenêtre"]
[{"$nulls":6},"203; Ovaal 1, CLICK",null,"203; Oválné 1, CLICK","203; Oval 1, CLICK","203; oval 1, CLICK","203; Owalne 1, CLICK","203; Ovaal 1, CLICK","203 ; Ovale 1, CLICK"]
[{"$nulls":6},"205; Hoekig 1, CLICK",null,"205; Hranaté 1, CLICK","205; Rectangular 1, CLICK","205; eckig 1, CLICK","205; Prostokątne 1, CLICK","205; Hoekig 1, CLICK","205 ; Carré 1, CLICK"]
[{"$nulls":6},"207; Hoekig 2",null,"207; Hranaté 2","207; Rectangular 2","207; eckig 2","207; Prostokątne 2","207; Hoekig 2","207 ; Carré 2"]
[{"$nulls":6},"216; Hoekig 9",null,"216; Hranaté 9","216; Rectangular 9","216; eckig 9","216; Prostokątne 9","216; Hoekig 9","216 ; Carré 9"]
[{"$nulls":6},"217; Rond",null,"217; Kulaté","217; Round","217; rund","217; Okrągłe","217; Rond","217 ; Rond"]
[{"$nulls":6},"218; Hoekig 1 ROESTVRIJ",null,"218; Hranaté NEREZ","218; Rectangular stainless steel","218; eckig, Edelstahl","218; Prostokątne NIERDZ.","218; Hoekig 1 ROESTVRIJ","218 ; Carré INOX"]
[{"$nulls":6},"215; Rond ROESTVRIJ",null,"215; Kulaté NEREZ","215; Round stainless steel","215; rund, Edelstahl","215; Okrągłe NIERDZ.","215; Rond ROESTVRIJ","215 ; Rond INOX"]
[{"$nulls":6},"211; Ovaal 1, 80 mm paneel",null,"211; Oválné 1,  80  mm panel","211; Oval 1,  80  mm pannel","211; oval 1,  80  mm Paneel","211; Okrągłe 1, 80 mm panel","211; Ovaal 1, 80 mm paneel","211 ; Ovale 1, panneau de 80 mm"]
[{"$nulls":6},"212; Hoek 1, 80 mm paneel",null,"212; Hranaté 1,  80 mm panel","212; Rectangular 1,  80 mm pannel","212; eckig 1,  80 mm Paneel","212; Prostokątne 1,  80 mm panel","212; Hoek 1, 80 mm paneel","212 ; Carré 1, panneau de 80 mm",{"$nulls":44},1649]
[{"$nulls":6},"216; Hoek 9, 80 mm paneel",null,"216; Hranaté 9, 80 mm panel","216; Rectangular 9, 80 mm pannel","216; eckig 9, 80 mm Paneel","216; Prostokątne 9, 80 mm panel","216; Hoek 9, 80 mm paneel","216 ; Carré 9, panneau de 80 mm"]
[{"$nulls":6},"204; Hoekig 3",null,"204; Hranaté 3","204; Rectangular 3","204; eckig 3","204; Prostokątne 3","204; Hoekig 3","204 ; Carré 3"]
[{"$nulls":6},"206; Hoekig 4",null,"206; Hranaté 4","206; Rectangular 4","206; eckig 4","206; Prostokątne 4","206; Hoekig 4","206 ; Carré 4"]
[{"$nulls":6},"210; Hoekig 7",null,"210; Hranaté 7","210; Rectangular 7","210; eckig 7","210; Prostokątne 7","210; Hoekig 7","210 ; Carré 7"]
[{"$nulls":6},"208; Hoekig 5",null,"208; Hranaté 5","208; Rectangular 5","208; eckig 5","208; Prostokątne 5","208; Hoekig 5","208 ; Carré 5"]
[{"$nulls":6},"202; Hoekig 10",null,"202; Hranaté 10","202; Rectangular 10","202; eckig 10","202; Prostokątne 10","202; Hoekig 10","202 ; Carré 10"]
[{"$nulls":6},"219; Hoekig roestvrij",null,"219; Hranaté nerez","219; Rectangular stainless steel","219; eckig,  Edelstahl","219; Prostokątne nierdz.","219; Hoekig roestvrij","219 ; Carré inox"]
[{"$nulls":6},"Full Vision-sectie",null,"Full Vision sekce","Full Visions sections","Alu-Rahmen Sektion","Full Vision sekcje panoramiczne","Full Vision-sectie","Section Full Vision"]
[{"$nulls":6},"Geïsoleerde sectie",null,"Zateplené sekce","Insulated sections","Alu-Sektion mit isolierter Füllung","Ocieplone sekcje","Geïsoleerde sectie","Section isolée"]
[{"$nulls":6},"Sectie met strekmetaal",null,"Sekce s tahokovem","Expanded mesh sections","Streckgitter","Sekcje z siatką aluminiową","Sectie met strekmetaal","Séction avec métal déployé"]
[{"$nulls":6},"Grendels, afsluitbare grendels",null,"Závory, uzamykatelné závory","Slide bolts, cylinder locks","Verschließbarer Griff","Rygle, zamki","Grendels, afsluitbare grendels","Barrières, barrière verrouillables"]
[{"$nulls":6},"490; Grendel",null,"490; Závora","490; Slide bolt","490; Schubriegel","490; Rygiel","490; Grendel","490 ; Barrière"]
[{"$nulls":6},"491; Grendel",null,"491; Závora","491; Slide bolt","491; Schubriegel","491; Rygiel","491; Grendel","491 ; Barrière"]
[{"$nulls":6},"492B; Afsluitbare grendel",null,"492B; Uzamykatelná závora","492B; Cylinder lock","492B; verschließbarer Griff","492B; Zamek","492B; Afsluitbare grendel","492B ; Barrière verrouillable"]
[{"$nulls":6},"493B; Afsluitbare grendel",null,"493B Uzamykatelná závora","493B; Cylinder lock","493B verschließbarer Griff","493B; Zamek","493B; Afsluitbare grendel","493B Barrière verrouillable"]
[{"$nulls":6},"492; Afsluitbare grendel",null,"495; Uzamykatelná závora","495; Cylinder lock","495; verschließbarer Griff","495; Zamek","492; Afsluitbare grendel","495 ; Barrière verrouillable"]
[{"$nulls":6},"497A; Afsluitbare grendel",null,"497A; Uzamykatelná závora","497A; Cylinder lock","497A; verschließbarer Griff","497A; Zamek","497A; Afsluitbare grendel","497A ; Barrière verrouillable"]
[{"$nulls":6},"497B; Afsluitbare grendel",null,"497B; Uzamykatelná závora","497B; Cylinder lock","497B; verschließbarer Griff","497B; Zamek","497B; Afsluitbare grendel","497B ; Barrière verrouillable"]
[{"$nulls":6},"492; Afsluitbare grendel",null,"498; Uzamykatelná závora","498; Cylinder lock","498; verschließbarer Griff","498; Zamek","492; Afsluitbare grendel","498 ; Barrière verrouillable"]
[{"$nulls":6},"499B; Afsluitbare grendel",null,"499B; Uzamykatelná závora","499B; Cylinder lock","499B; verschließbarer Griff","499B; Zamek","499B; Afsluitbare grendel","499B ; Barrière verrouillable"]
[{"$nulls":6},"499S; Afsluitbare grendel",null,"499S; Uzamykatelná závora","499S; Cylinder lock","499S; verschließbarer Griff","499S; Zamek","499S; Afsluitbare grendel","499S ; Barrière verrouillable"]
[{"$nulls":6},"Handgrepen",null,"Madla","Handles (grips)","Handgriffe","Uchwyty","Handgrepen","Poignées"]
[{"$nulls":6},"466; Eenzijdige handgreep",null,"466; Jednostranné madlo","466; Handgrip single - sided","466; Handgriff - einseitig","466; Uchwyt jednostronny","466; Eenzijdige handgreep","466 ; Poignée unilatérale"]
[{"$nulls":6},"460; Tweezijdige handgreep",null,"460; Oboustranné madlo","460; Handgrip double-sided","460; Handgriff - beiderseits","460; Uchwyt dwustronny","460; Tweezijdige handgreep","460 ; Poignée bilatérale"]
[{"$nulls":6},"463; Tweezijdige handgreep",null,"463; Oboustranné madlo","463; Handgrip double-sided","463; Handgriff - beiderseits","463; Uchwyt dwustronny","463; Tweezijdige handgreep","463 ; poignée bilatérale"]
[{"$nulls":6},"467; Tweezijdige handgreep",null,"467; Oboustranné madlo","467; Handgrip double-sided","467; Handgriff - beiderseits","467; Uchwyt dwustronny","467; Tweezijdige handgreep","467 ; Poignée bilatérale"]
[{"$nulls":6},"468; Tweezijdige handgreep",null,"468; Oboustranné madlo","468; Handgrip double-sided","468; Handgriff - beiderseits","468; Uchwyt dwustronny","468; Tweezijdige handgreep","468 ; Poignée bilatérale"]
[{"$nulls":6},"469; Tweezijdige handgreep",null,"469; Oboustranné madlo","469; Handgrip double-sided","469; Handgriff - beiderseits","469; Uchwyt dwustronny","469; Tweezijdige handgreep","469 ; Poignée bilatérale"]
[{"$nulls":6},"469S; Tweezijdige handgreep",null,"469S; Oboustranné madlo","469S; Handgrip double-sided","469S; Handgriff - beiderseits","469S; Uchwyt dwustronny","469S; Tweezijdige handgreep","469S ; Poignée bilatérale"]
[{"$nulls":6},"Type beglazing",null,"Typ prosklení","Type of glazing","Verglasungstyp","Rodzaj przeszklenia","Type beglazing","Type de vitrage"]
[{"$nulls":6},"Type geïsoleerde sectie",null,"Typ zateplené sekce","Type of insulated section","Typ der isolierten Sektion","Rodzaj ocieplonej sekcji","Type geïsoleerde sectie","Type de section isolée"]
[{"$nulls":6},"Type strekmetaal",null,"Typ tahokovu","Type of expanded mesh","Typ der Streckgitter","Rodzaj siatki aluminiowej","Type strekmetaal","Type de maillage"]
[{"$nulls":6},"Type venster",null,"Typ okna","Type of window","Typ der Fenster","Rodzaj okna","Type venster","Type de fenêtre"]
[{"$nulls":6},"250; Dubbelwandige beglazing SAN UV",null,"250; Dvoustěnné prosklení SAN UV","250; Double wall glazing SAN UV","250; Doppelverglasung SAN UV","250; Podwójne przeszklenie SAN UV","250; Dubbelwandige beglazing SAN UV","250 ; Double vitrage SAN UV"]
[{"$nulls":6},"220; Enkelwandige beglazing SAN UV",null,"220; Jednostěnné prosklení SAN UV","220; Single wall glazing SAN UV","220; Einfachverglasung SAN UV","220; Pojedyncze przeszklenie SAN UV","220; Enkelwandige beglazing SAN UV","220 ; Simple vitrage SAN UV"]
[{"$nulls":6},"260; Dubbelwandige polycarbonaatbeglazing",null,"260; Dvoustěnné prosklení polykarbonát","260; Double wall glazing polycarbonate","260; Doppelverglasung Polycarbonat","260;Podwójne przeszklenie poliwęglan","260; Dubbelwandige polycarbonaatbeglazing","260 ; Double vitrage en polycarbonate"]
[{"$nulls":6},"230; Enkelwandige polycarbonaatbeglazing",null,"230; Jednostěnné prosklení polykarbonát","230; Single wall glazing polycarbonate","230; Einfachverglasung Polycarbonat","230; Pojedyncze przeszklenie poliwęglan","230; Enkelwandige polycarbonaatbeglazing","230 ; Simple vitrage en polycarbonate"]
[{"$nulls":6},"250.10; Dubbelwandige beglazing SAN UV, 1x ANTI SCRATCH",null,"250.10; Dvoustěnné prosklení SAN UV, 1x ANTI SCRATCH","250.10; Double wall glazing SAN UV, 1x ANTI SCRATCH","250.10; Einfachverglasung SAN UV, 1x kratzfest","250.10; Podwójne przeszklenie SAN UV, 1x ANTI SCRATCH","250.10; Dubbelwandige beglazing SAN UV, 1x ANTI SCRATCH","250.10 ; Double vitrage SAN UV, 1x ANTI SCRATCH"]
[{"$nulls":6},"250.10; Dubbelwandige beglazing SAN UV, 2x ANTI SCRATCH",null,"250.20; Dvoustěnné prosklení SAN UV, 2x ANTI SCRATCH","250.20; Double wall glazing SAN UV, 2x ANTI SCRATCH","250.20; Doppelverglasung SAN UV, 2x kratzfest","251.20; Podwójne przeszklenie SAN UV, 2x ANTI SCRATCH","250.10; Dubbelwandige beglazing SAN UV, 2x ANTI SCRATCH","250.20 ; Double vitrage SAN UV, 2x ANTI SCRATCH"]
[{"$nulls":6},"250.Co; Dubbelwandige beglazing SAN UV; kleurig",null,"250.Co; Dvoustěnné prosklení SAN UV; barevné","250.Co; Double wall glazing SAN UV with coloured panes","250.Co; farbige Doppelverglasung SAN UV ","252.Co; Podwójne przeszklenie SAN UV, kolorowe","250.Co; Dubbelwandige beglazing SAN UV; kleurig","250.Co ; Double vitrage SAN UV ; coloré"]
[{"$nulls":6},"270; Geïsoleerde aluminium voering stucwerk",null,"270; Zateplené hliníkové výplně stucco","270; Insulated aluminium stucco fillings","270; Isolierte Alu-Stucco Füllung","270;Ocieplone wypełnienie aluminiowe stucco","270; Geïsoleerde aluminium voering stucwerk","270 ; Panneaux en aluminium isolé stucco"]
[{"$nulls":6},"270; Geïsoleerde aluminium voering glad",null,"270.20; Zateplené hliníkové výplně hladké","270.20; Insulated aluminium flat fillings","270.20; Isolierte Alu-Glatte Füllung","270.20; Ocieplone wypełnienie aluminiowe gładkie","270; Geïsoleerde aluminium voering glad","270.20 ; Panneaux en aluminium isolé hladké"]
[{"$nulls":6},"280; Strekmetaal, oog 16/8",null,"280; Tahokov, oko 16/8","280; Expanded mesh, eye size 16/8","280; Streckgitter 16/8","280; Siatka aluminiowa, oko 16/8","280; Strekmetaal, oog 16/8","280 ; Tôle de choc, œillet 16/8"]
[{"$nulls":6},"280; Strekmetaal, oog 22/12",null,"280; Tahokov, oko 22/12","280; Expanded mesh, eye size 22/12","280; Streckgitter 22/12","280; Siatka aluminiowa, oko 16/9","280; Strekmetaal, oog 22/12","280 ; Tôle de choc, œillet 22/12"]
[{"$nulls":6},"Bediening",null,"Ovládání","Control","Bedienung","Sterowanie","Bediening","Commande"]
[{"$nulls":6},{"$f":"VLOOKUP(I130,I:N,$G$1,FALSE)","v":"Handmatig"},null,"Manuální","Manual","Handbed.","Ręczne","Handmatig","Manuelle"]
[{"$nulls":6},"Kettingtransmissie 1: 4",null,"Řetězový převod 1:4","Chain hoist 1:4","Haspelkette 1:4","Przekładnia łańcuchowa 1:4","Kettingtransmissie 1: 4","Transmission à chaîne 1:4"]
[{"$nulls":6},"Motor",null,"Motor","Motor","Antrieb","Silnik","Motor","Moteur"]
[{"$nulls":6},"De klant levert de motor",null,"Motor dodává zákazník","Motor supplied by customer","Antrieb bauseits geliefert","Silnik dostarcza klient","De klant levert de motor","Le moteur est fourni par le client"]
[{"$nulls":6},"Motortype",null,"Typ motoru","Type of motor","Antrieb-Typ","Rodzaj silnika","Motortype","Type de moteur"]
[{"$nulls":6},"Motoraccessoires",null,"Příslušenství motoru","Accessories for motor","Zubehör zum Antrieb","Akcesoria do silnika","Motoraccessoires","Accessoires du moteur"]
[{"$nulls":6},"Bedieningsmodus",null,"Režim ovládání","Operation","Steuerung","Tryb sterowania","Bedieningsmodus","Mode de commande"]
[{"$nulls":6},"Totman",null,"Totman","Dead man","TOTMAN","Totman","Totman","Totman"]
[{"$nulls":6},"impulsbesturing",null,"Impulsní řízení","Impuls","IMPULS","Impuls","impulsbesturing","Gestion par impulsions"]
[{"$nulls":6},"Afstandsbediening",null,"Dálkové ovládání","Remote control","FUNK","Zdalne sterowanie","Afstandsbediening","Commande à distance"]
[{"$nulls":6},"Onderste beslag",null,"Spodní kování","Bottom bracket","Bodenkonsole","Okucia dolne","Onderste beslag","Ferrures inférieures"]
[{"$nulls":6},"Aluminium",null,"Hliníkové","Aluminium","Alu-Bodenkonsole","Aluminiowe","Aluminium","En aluminium"]
[{"$nulls":6},"Staal, LHR-C, max. 160 kg",null,"Ocelové, LHR-C, max. 160 kg","Galv. steel, LHR-C, max. 160 kg","Stahl-Konsole, LHR-C bis 160kg","Stal., LHR-C, max 160 kg","Staal, LHR-C, max. 160 kg","En acier, LHR-C, max. 160 kg"]
[{"$nulls":6},"Zekering tegen kabelbreuk",null,"Pojistka při prasknutí lanka","Cable break security device","Seilbruchsicherung","Bezpiecznik przy pęknięciu linki","Zekering tegen kabelbreuk","Parachutes câble"]
[{"$nulls":6},"Versterkingen",null,"Výztuhy","Reinforcing struts","Versteifungen","Wzmocnienia","Versterkingen","Renforts"]
[{"$nulls":6},"Zekering tegen veerbreuk",null,"Pojistka při prasknutí pružiny","Spring break device","Federbruchsicherung","Bezpiecznik przy pęknięciu sprężyny","Zekering tegen veerbreuk","Parachute ressort"]
[{"$nulls":6},"Besturingseenh. IP 54",null,"Řídící jednotka IP 54","Control  box IP 54","Steuerung IP54","Jedn. sterująca IP 54","Besturingseenh. IP 54","Unité de comm. IP 54"]
[{"$nulls":6},"Besturingseenh. IP 65",null,"Řídící jednotka IP 65","Control  box IP 65","Steuerung IP65","Jedn. sterująca IP 65","Besturingseenh. IP 65","Unité de comm. IP 65"]
[{"$nulls":6},"Frequentie-omvormer",null,"Frekvenční měnič","Frequency converter","Frequenzumrichter","Przemiennik częstotliwości","Frequentie-omvormer","Convertisseur de fréquence"]
[{"$nulls":6},"Spiraalkabel",null,"Spirál kabel","Helix (spiral) cable","Spiralkabel","Kabel spiralny","Spiraalkabel","Spirale câble"]
[{"$nulls":6},"Draadloze transmissie (WSD)",null,"Bezdrátový přenos (WSD)","Wireless transmition (WSD)","WDS-Modul","Transmisja bezprzewodowa (WSD)","Draadloze transmissie (WSD)","Transfert sans fil (WSD)"]
[{"$nulls":6},"Afstandsbediening",null,"Dálkové ovladače","Remote controls","Handsender","Piloty","Afstandsbediening","Boutons de commande à distance"]
[{"$nulls":6},"2 kanaals",null,"2kanálové","2-channels","2-Kanal","2-kanałowe","2 kanaals","à 2 canaux"]
[{"$nulls":6},"3 kanaals",null,"3kanálové","3-channels","3-Kanal","3-kanałowe","3 kanaals","à 3 canaux"]
[{"$nulls":6},"4 kanaals",null,"4kanálové","4-channels","4-Kanal","4-kanałowe","4 kanaals","à 4 canaux"]
[{"$nulls":6},"Externe reflecterende fotocel",null,"Externí reflexní fotobuňka","External reflex photocell","Externe Fotozelle","Fotokomórka zewn. reflex","Externe reflecterende fotocel","Cellules photo réfléchissante extérieure"]
[{"$nulls":6},"externe driedubbele knop",null,"Externí trojtlačítko","External tripple button switch box","Extrerner drei-fach-Taster","Trójprzycisk zewn.","externe driedubbele knop","Triple bouton extérieur"]
[{"$nulls":6},"Seinpaal",null,"Semafor","Traffic light","Ampel","Światła sygnalizacyjne","Seinpaal","Phare"]
[{"$nulls":6},"Besturingseenheid seinpaal A800",null,"Řídící jednotka semaforu A800","Control unit for traffic lights A800","Steuerung für Ampelsteuerung A800","Jednostka sterująca świateł sygn. A800","Besturingseenheid seinpaal A800","Unité de commande du phare A800"]
[{"$nulls":6},"Rood licht",null,"Červené světlo","Red light","Licht-rot","Czerwone światło","Rood licht","Lampe rouge"]
[{"$nulls":6},"Groen licht",null,"Zelené světlo","Green light","Licht-grün","Zielone światło","Groen licht","Lampe verte"]
[{"$nulls":6},"Rood + groen licht",null,"Červené + zelené světlo","Red + green light","Licht-rot+grün","Czerwone + zielone światło","Rood + groen licht","Lampe rouge + verte"]
[{"$nulls":6},"Ruimte voor uw notities",null,"Prostor pro Vaše poznámky","Your notes","Bemerkungen","Twoje notatki","Ruimte voor uw notities","Espace réservé à vos commentaires"]
[{"$nulls":6},"Ventilatieroosters",null,"Větrací mřížky","Air grates","Lüftungsgitter","Kratki wentylacyjne","Ventilatieroosters","Grilles de ventilation"]
[{"$nulls":6},"Zwart/wit",null,"Černá/bílá","Black/white","Scharz/weiß","Czarna/biała","Zwart/wit","Noir/blanc"]
[{"$nulls":6},"Wit/wit",null,"Bílá/bílá","White/white","Weiß/weiß","Biała/biała","Wit/wit","Blanc/blanc"]
[{"$nulls":6},"Notenhout/9010",null,"Ořech/9010","Nut/9010","Nuss/9010","Orzech/9010","Notenhout/9010","Noyer/9010"]
[{"$nulls":6},"Notenhout/9016",null,"Ořech/9016","Nut/9016","Nuss/9016","Orzech/9016","Notenhout/9016","Noyer/9016"]
[{"$nulls":6},"Gouden eik/9010",null,"Zlatý dub/9010","Golden oak/9010","Eiche Golden/9010","Złoty dąb/9010","Gouden eik/9010","Chêne doré/9010"]
[{"$nulls":6},"Gouden eik/9016",null,"Zlatý dub/9016","Golden oak/9016","Eiche Golden/9016","Złoty dąb/9016","Gouden eik/9016","Chêne doré/9016"]
[{"$nulls":6},"9010/9010",null,"9010/9010","9010/9010","9010/9010","9010/9010","9010/9010","9010/9010"]
[{"$nulls":6},"Mahonie/9010",null,"Mahagon/9010","Mahagony/9010","Mahagony/9010","Mahoń/9010","Mahonie/9010","Acajou/9010"]
[{"$nulls":6},"Mahonie/9016",null,"Mahagon/9016","Mahagony/9016","Mahagony/9016","Mahoń/9016","Mahonie/9016","Acajou/9016"]
[{"$nulls":6},"9016/9010",null,"9016/9010","9016/9010","9016/9010","9016/9010","9016/9010","9016/9010"]
[{"$nulls":6},"Donkere eik/9010",null,"Tmavý dub/9010","Dark oak/9010","Eiche Dunkel/9010","Ciemny dąb/9010","Donkere eik/9010","Chêne foncé/9010"]
[{"$nulls":6},"Donkere eik/9016",null,"Tmavý dub/9016","Dark oak/9016","Eiche Dunkel/9016","Ciemny dąb/9016","Donkere eik/9016","Chêne foncé/9016"]
[{"$nulls":6},"Sleutelschakelaars, toetsenborden",null,"Klíčové spínače, klávesnice","Key contacts and keyboards","Schlüsselschalter, Tastaturen","Przełączniki kluczykowe, klawiatury","Sleutelschakelaars, toetsenborden","Commutateurs à clé, clavier"]
[{"$nulls":6},"856; Codepaneel Digicode",null,"856; Kódová klávesnice DigiCode","856; Code keyboard DigiCode","856; Kodentaster - DigiCode","856; Klawiatura kodowa DigiCode","856; Codepaneel Digicode","856 ; Clavier à code DigiCode"]
[{"$nulls":6},"860; Dubbel knop DuoControl",null,"860; Dvoutlačítko DuoControl","860; Wall remote control DuoControl","860; Wand-Doppeltaster -  DuoControl","860; Dwuprzycisk DuoControl","860; Dubbel knop DuoControl","860 ; Double bouton DuoControl"]
[{"$nulls":6},"855; Sleutelschakelaar op de bepleistering",null,"855; Klíčový spínač na omítku","855; Key contact surface mounting","855; Schlüsselschalter auf Putz","855; Przełącznik kluczykowy na tynk","855; Sleutelschakelaar op de bepleistering","855 ; Commutateur à clé en surface"]
[{"$nulls":6},"858; Sleutelschakelaar onder de bepleistering",null,"858; Klíčový spínač pod omítku","858; Key contact concealed mounting","858; Schlüsselschalter unter Putz","858; Przełącznik kluczykowy pod tynk","858; Sleutelschakelaar onder de bepleistering","858 ; Commutateurs à clé encastré"]
[{"$nulls":6},"Externe ontvanger",null,"Externí přijímač","External receiver","Externer Empfänger","Odbiornik zewn.","Externe ontvanger","Récepteur extérieur"]
[{"$nulls":6},"Fotocel",null,"Fotobuňka","Light barrier","Fotozelle","Fotokomórka","Fotocel","Cellule photo"]
[{"$nulls":6},"Algemene hoogte [mm]",null,"Obecná výška [mm]","General height [mm]","Allgemeine Höhe","Wysokość ogólna [mm]","Algemene hoogte [mm]","Hauteur générale [mm]"]
[{"$nulls":6},"Dekplaten",null,"Krycí plechy","Covers for track","Verkleidungsbleche","Osłona prowadzenia","Dekplaten","Tôles de protection"]
[{"$nulls":6},"Verticale geleiding",null,"Svislé vedení","Vertical track","Senkrechte Schienen","Pionowe prowadzenie","Verticale geleiding","Guide vertical"]
[{"$nulls":6},"Horizontaal profiel",null,"Vodorovný profil","Horizontal cover","Waagrechtes Profil","Profil poziomy","Horizontaal profiel","Profilé horizontal"]
[{"$nulls":6},"J-platen",null,"\"J\" plechy","\"J\" covers","\"J\" Profil","\"J\" osłony","J-platen","Tôles en « J »"]
[{"$nulls":6},"L-platen",null,"\"L\" plechy","\"L\" covers","\"L\" Profile","\"L\" osłony","L-platen","Tôles en « L »"]
[{"$nulls":6},"L-plaat",null,"\"L\" plech","\"L\" cover","\"L\" Profil","\"L\" osłona","L-plaat","Tôle en « L »"]
[{"$nulls":6},"Tweede draagbalkprofiel",null,"Druhý překladový profil","2nd lintel profile","Zweites Sturzprofil","Drugi profil nadproża","Tweede draagbalkprofiel","Second profilé de linteau"]
[{"$nulls":6},"Externe deblokkering",null,"Externí odblokování","External release","Externe Entriegelung","Odryglowanie zewn.","Externe deblokkering","Déblocage extérieur"]
[{"$nulls":6},"met cilinderslot en afdekking",null,"s cylindrickým zámkem a krytkou","Key cylinder and cover","Mit Profilzylinder und einer Kappe","Z zamkiem cylindr. I osłoną","met cilinderslot en afdekking","avec verrou cylindrique et capuchon"]
[{"$nulls":6},"met rond slot",null,"s kulatým zámkem","Round key cylinder","Mit Rundzylinder","Z okrągłym zamkiem cylindr.","met rond slot","avec verrou rond"]
[{"$nulls":6},{"$f":"VLOOKUP(I194,I:N,$G$1,FALSE)","v":"Pre-assemblage van de as"},null,"Předmontovaná hřídel","Preassembled shaft","Vormontierte Welle","Montaż wstępny wału","Pre-assemblage van de as","Arbre préassemblé"]
[{"$nulls":6},", tot 4000x4000mm",null,", do 4000x4000mm",", up to 4000x4000",", bis 4000x4000mm",", do 4000x4000mm",", tot 4000x4000mm",", jusqu'à 4000x4000mm"]
[{"$nulls":6},"Geperforeerde hoeklijn",null,"Zavěšení vedení","Hanging profiles","Befestigung der waagrechten Schienen","Profile wiszące","Geperforeerde hoeklijn","Cornière de soutien"]
[{"$nulls":6},"30x30, Geperforeerde winkelhaak, ronde openingen",null,"30x30, Děrov. úhelník, kulaté otv.","30x30, Perfer. angle, round holes","30x30, Anhängewinkel mit Rund-Löchern","30x30, Kątownik perf., okrągłe otw.","30x30, Geperforeerde winkelhaak, ronde openingen","30x30, Équerre percée, orifices ronds"]
[{"$nulls":6},"30x30, Geperforeerde winkelhaak, ronde openingen",null,"30x30, Děrov. úhelník, oválné otv.","30x30, Perfer. angle, oval holes","30x30, Anhängewinkel mit Oval-Löchern","30x30, Kątownik perf., owalne otw.","30x30, Geperforeerde winkelhaak, ronde openingen","30x30, Équerre percée, orifices ovales"]
[{"$nulls":6},"50x50, Geperforeerde winkelhaak, ronde openingen",null,"50x50, Děrov. úhelník, kulaté otv.","50x50, Perfer. angle, round holes","50x50, Anhängewinkel mit Rund-Löchern","50x50, Kątownik perf., okrągłe otw.","50x50, Geperforeerde winkelhaak, ronde openingen","50x50, Équerre percée, orifices ronds"]
[{"$nulls":6},"50x50, Geperforeerde winkelhaak, ronde openingen",null,"50x50, Děrov. úhelník, oválné otv.","50x50, Perfer. angle, oval holes","50x50, Anhängewinkel mit Oval-Löchern","50x50, Kątownik perf., owalne otw.","50x50, Geperforeerde winkelhaak, ronde openingen","50x50, Équerre percée, orifices ovales"]
[{"$nulls":6},"L-profiel (alleen LHF-C, LHR-C)",null,"\"L\" profil (pouze LHF-C, LHR-C)","\"L\" profile (LHF-C, LHR-C only)","\"L\" Profile (nur für LHF-C, LHR-C)","„L” profil (tylko LHF-C, LHR-C)","L-profiel (alleen LHF-C, LHR-C)","Profilé en « L » (uniquement pour LHF-C, LHR-C)"]
[{"$nulls":6},"L-profielen",null,"\"L\" profily","\"L\" profiles","\"L\" Profile","„L” profile","L-profielen","Profilés en « L »"]
[{"$nulls":6},"Algemeen",null,"Obecná","General","Allgemeine","Ogólna ","Algemeen","Hauteur "]
[{"$nulls":6},"Hoogte [mm]",null,"výška [mm]","height [mm]","Höhe [mm]","Wysokość [mm]","Hoogte [mm]","générale [mm]"]
[{"$nulls":6},"Hoogte van de onderrand van het draagbalkprofiel [mm]",null,"Výška ke spodní hraně překladového profilu [mm]","Height to bottom edge of lintel profile [mm]","Höhe zur unteren Kante des Sturzprofiles [mm]","Wysokość do dolnej krawędzi profilu nadproża [mm]","Hoogte van de onderrand van het draagbalkprofiel [mm]","Hauteur jusqu’au bord inférieur du linteau [mm]"]
[{"$nulls":6},"Hoogte van het plafond [mm]",null,"Výška stropu [mm]","Height of ceiling [mm]","Deckenhöhe [mm]","Wysokość stropu [mm]","Hoogte van het plafond [mm]","Hauteur du plafond [mm]"]
[{"$nulls":6},"Draagbalkprofiel",null,"Překladový profil","Lintel profile","Sturzprofil","Profil nadproża","Draagbalkprofiel","Profil de linteau"]
[{"$nulls":6},"Lakken van Draagbalkprofiel",null,"Lakování překladového profilu","Painting of lintel profile","Lackierung des Sturzprofils","Lakierowanie profilu nadproża","Lakken van Draagbalkprofiel","Peinture du profil de linteau"]
[{"$nulls":6},"Lakken van dekplatten",null,"Lakování krycích plechů","Painting of tracks' covers","Lackierung der Verkleidungsbleche","Lakierowanie osłon","Lakken van dekplatten","Peinture des tôles de protection"]
[{"$nulls":6},"Standaard situatie",null,"Standardní situace","Standard situation","Standardsituation","Sytuacja standardowa","Standaard situatie","Situation standard"]
[{"$nulls":6},"Atypische situatie",null,"Nestandardní situace","Non-standard situation","Ungewöhnliche Situation","Sytuacja niestandardowa","Atypische situatie","Situation non standard"]
[{"$nulls":6},"Thermische onderbreking afdichting",null,"Těsnění s přerušeným tepelným mostem","Termal break sealing","Thermisch getrennte Dichtung","Uszczelnienie z mostkiem cieplnym","Thermische onderbreking afdichting","Joint de rupture thermique"]
[{"$nulls":6},"Bestelling op basis van de maten van de OPENING",null,"Objednávka na základě rozměrů OTVORU","Order based on OPENING dimensions","Bestellung aufgrund der Öffnungsmaße","Zamówienie na podstawie wymiarów OTWORU","Bestelling op basis van de maten van de OPENING","Commande sur la base des dimensions de l’ORIFICE"]
[{"$nulls":6},"Bestelling op basis van de maten van het FRAME",null,"Objednávka na základě vnějšího rozměru RÁMU","Order based on outer FRAME dimensions","Bestellung  aufgrund der Rahmenaußenmaße","Zamówienie na podstawie zewnętrznych wymiarów RAMY","Bestelling op basis van de maten van het FRAME","Commande sur la base des dimensions du CADRE"]
[{"$nulls":6},"Framebreedte",null,"Šířka rámu","Width of frame","Rahmenbreite","Szerokość ramy","Framebreedte","Largeur du cadre"]
[{"$nulls":6},"Framehoogte",null,"Výška rámu","Height of frame","Rahmenhöhe","Wysokość ramy","Framehoogte","Hauteur du cadre"]
[{"$nulls":6},"2LD 01",null,"2LD 01","2LD 01","2LD 01","2LD 01","2LD 01","2LD 01"]
[{"$nulls":6},"2LD 02",null,"2LD 02","2LD 02","2LD 02","2LD 02","2LD 02","2LD 02"]
[{"$nulls":6},"2LD 03",null,"2LD 03","2LD 03","2LD 03","2LD 03","2LD 03","2LD 03"]
[{"$nulls":6},"2LD 04",null,"2LD 04","2LD 04","2LD 04","2LD 04","2LD 04","2LD 04"]
[{"$nulls":6},"2LD 05",null,"2LD 05","2LD 05","2LD 05","2LD 05","2LD 05","2LD 05"]
[{"$nulls":6},"2LD 06",null,"2LD 06","2LD 06","2LD 06","2LD 06","2LD 06","2LD 06"]
[{"$nulls":6},"2LD 07",null,"2LD 07","2LD 07","2LD 07","2LD 07","2LD 07","2LD 07"]
[{"$nulls":6},"2LD 08",null,"2LD 08","2LD 08","2LD 08","2LD 08","2LD 08","2LD 08"]
[{"$nulls":6},"2LD 09",null,"2LD 09","2LD 09","2LD 09","2LD 09","2LD 09","2LD 09"]
[{"$nulls":6},"2LD 10",null,"2LD 10","2LD 10","2LD 10","2LD 10","2LD 10","2LD 10"]
[{"$nulls":6},"2LD 11",null,"2LD 11","2LD 11","2LD 11","2LD 11","2LD 11","2LD 11"]
[{"$nulls":6},"2LD 12",null,"2LD 12","2LD 12","2LD 12","2LD 12","2LD 12","2LD 12"]
[{"$nulls":6},"Plaatsing:",null,"Umístění: ","Position: ","Platzierung:","Umieszczenie:","Plaatsing:","Emplacement : "]
[{"$nulls":6},"in de opening",null,"do otvoru","in the opening","in die Öffnung","do otworu","in de opening","dans l’orifice"]
[{"$nulls":6},"achter de opening",null,"za otvor","behind the opening","hinter die Öffnung","za otwór","achter de opening","derrière l’orifice"]
[{"$nulls":6},"vóór de opening",null,"před otvor","front of opening","vor die Öffnung","przed otwór","vóór de opening","devant l’orifice"]
[{"$nulls":6},": naar buiten",null,": ven",": out",": außen",": na zewnątrz",": naar buiten",": vers l’extérieur"]
[{"$nulls":6},": naar binnen",null,": dovnitř",": in",": innen",": do wewnątrz",": naar binnen",": vers l’intérieur"]
[{"$nulls":6},"Deurkruk:",null,"Klika:","Handle: ","Klinke: ","Klamka: ","Deurkruk:","Poign.: "]
[{"$nulls":6},"in de linkerdeur",null,"v levém křídle","in left leaf","im linken Flügel","w lewym skrz.","in de linkerdeur","d. le batt. de gauche"]
[{"$nulls":6},"in de rechterdeur",null,"v pravém křídle","in right leaf","im rechten Flügel","w prawym skrz.","in de rechterdeur","d. le batt. de droite"]
[{"$nulls":6},"Kleur van frame- en vleugelprofielen",null,"Lakování profilů rámu a křídel","Painting of frame's and leaves' profiles","Lackierung der Rahmen- und Flügelprofile","Lakierowanie profili ramy i skrzydeł","Kleur van frame- en vleugelprofielen","Peinture des profilés du cadre et des battants"]
[{"$nulls":6},"Kleur van frame- en vleugelprofielen",null,"Lakování profilů rámu a křídla","Painting of frame's and leaf's profiles","Lackierung der Rahmen- und Flügelprofile","Lakierowanie profili ramy i skrzydła","Kleur van frame- en vleugelprofielen","Peinture des profilés du cadre et du battant"]
[{"$nulls":6},"Kleur van frame-, vleugel- en bovenprofielen",null,"Lakování profilů rámu, křídla, nadsvětlíku","Painting of frame's, leaf's and fixed top panel profiles","Lackierung der Rahmen- und Flügel- und Oberlichtprofile","Lakierowanie profili ramy, skrzydła i nadświetla","Kleur van frame-, vleugel- en bovenprofielen","Peinture des profilés du cadre et du battant"]
[{"$nulls":6},"Verven scharnieren (alleen mogelijk als scharnierzijde van profielen is geverfd)",null,"Lakování pantů (pouze při lakování příslušné strany profilů)","Painting of hinges (only available if hinged side of profiles is painted)","Lackierung der Bänder (ist nur bei Rahmenlackierung der Bänderseite möglich)","Lakierowanie zawiasów (tylko przy malowaniu odpowiedniej strony profili)","Verven scharnieren (alleen mogelijk als scharnierzijde van profielen is geverfd)","Peinture des charnières (quand les profils sont laqués)"]
[{"$nulls":6},"Verven beglazingsstrips (alleen mogelijk als binnenkant van de profielen is geverfd)",null,"Lakování zasklívacích lišt (pouze při lakování vnitřní strany profilů křídla)","Painting of glazing lathes (only available if inner side of profiles is painted)","Lackierung der Alu-Leisten (ist nur bei Innen-Rahmenlackierung möglich)","Lakierowanie listew przyszybowych (tylko przy malowaniu wewnętrznych profili skrzydła)","Verven beglazingsstrips (alleen mogelijk als binnenkant van de profielen is geverfd)","Peintures des joints de vitrage (quand les profils intérieurs sont laqués)"]
[{"$nulls":6},"Type vanger",null,"Typ zarážky","Door stopper","Typ der Verriegelung","Rodzaj ogranicznika","Type vanger","Type d’arrêt de porte"]
[{"$nulls":6},"Vergrendeling geopend deurblad",null,"Aretace otevřeného křídla","Securing of opened leaf","Fixierung des Gehflügels","Blokowanie otwartego  skrzydła","Vergrendeling geopend deurblad","Type d´arrêt de battant ouvert"]
[{"$nulls":6},"Geen vergrendeling (standaard optie)",null,"Bez aretace (standard)","No securing (default option)","Ohne Fixierung (Standard)","Bez blokowania (standard)","Geen vergrendeling (standaard optie)","Sans arrêt (standard)"]
[{"$nulls":6},"Uitschuifbare voetgrendel 180 mm",null,"Výsuvný zášlap 180mm","Sliding stopper 180mm","Feststellfuß - ausziehbar 180mm","Wysuwany ogranicznik","Uitschuifbare voetgrendel 180 mm","Arrêt de porte coulissant 180 mm"]
[{"$nulls":6},"Uitklapbare voetgrendel 400mm",null,"Výklopný zášlap 400mm","Tipping stopper 400 mm","Feststellfuß - aufklappbar 400mm","Składany ogranicznik","Uitklapbare voetgrendel 400mm","Arrêt de porte basculant 400 mm"]
[{"$nulls":6},"Wijze van verankering",null,"Způsob kotvení","Style of installation","Methode der Verankerung","Sposób instalacji","Wijze van verankering","Mode d’ancrage"]
[{"$nulls":6},"Met winkelhaken (standaard)",null,"Pomocí úhelníků (standard)","By angle brackets (default option)","Mit dem Winkelanker","Za pomocą kątowników (standard)","Met winkelhaken (standaard)","À l’aide d’équerres (standard)"]
[{"$nulls":6},"Verankeringstrips (standaard optie)",null,"Kotvící plech (standard)","Anchoring strips (default option)","Befestigungswinkel (Standard)","Płyta kotwiąca","Verankeringstrips (standaard optie)","Plaque d'ancrage (standard)"]
[{"$nulls":6},"Door het frame (alleen 2LD 01, 02, 03, 04)",null,"Skrz rám (pouze 2KV 01, 02, 03, 04)","Throught frame (only 2LD 01, 02, 03, 04)","Durch den Rahmen (nur 2LD 01, 02, 03, 04)","Przez ramę (tylko 2LD 01, 02, 03, 04)","Door het frame (alleen 2LD 01, 02, 03, 04)","Au travers du cadre (uniquement 2LD 01, 02, 03, 04)"]
[{"$nulls":6},"Door het frame (alleen MD, 01, 02, 03, 04)",null,"Skrz rám (pouze MD 01, 02, 03, 04)","Throught frame (only MD 01, 02, 03, 04)","Durch den Rahmen (nur MD 01, 02, 03, 04)","Przez ramę (tylko MD 01, 02, 03, 04)","Door het frame (alleen MD, 01, 02, 03, 04)","Au travers du cadre (uniquement MD 01, 02, 03, 04)"]
[{"$nulls":6},"Door het frame",null,"Skrz rám","Throught frame","Durch den Rahmen","Przez ramę","Door het frame","Au travers du cadre"]
[{"$nulls":6},"Symmetrie van de vleugels",null,"Souměrnost křídel","Symmetry of leaves","Torflügelsymmetrie","Symetria skrzydeł","Symmetrie van de vleugels","Symétrie des battants"]
[{"$nulls":6},"Ja (deurbladen even breed)",null,"Ano (křídla stejně široká)","Yes, equal width of both leaves","Ja, Torflügel haben gl. Breite","Tak (skrzydła o tej samej szerokości)","Ja (deurbladen even breed)","Oui (les battants ont la même largeur)"]
[{"$nulls":6},"Nee (deurbl. van verschill. breedtes)",null,"Ne (křídla s různou šířkou)","No, leaves with different width","Nein, Torfl. haben versch. Breite","Nie (skrzydła o różnej szerokości)","Nee (deurbl. van verschill. breedtes)","Non (chaque batt. a une largeur diff.)"]
[{"$nulls":6},"Breedte van de linker deurblad",null,"Šířka levého křídla","Width of left leaf","Breite des linken Flügels","Szerokość lewego skrzydła","Breedte van de linker deurblad","Largeur du battant gauche"]
[{"$nulls":6},{"$f":"VLOOKUP(I258,I:N,$G$1,FALSE)","v":"Breedte van de rechter deurblad"},null,"Šířku pravého křídla","Width of right leaf is","Die Breite des rechten Flügels wird","Szerokość prawego skrzydła","Breedte van de rechter deurblad","Largeur du battant de droite"]
[{"$nulls":6},"wordt berekend door TOORS",null,"dopočítá TOORS","calculated by TOORS","von TOORS kalkuliert.","doliczy TOORS","wordt berekend door TOORS","sera calculé par TOORS"]
[{"$nulls":6},"Vul ofwel de maten van de opening of de maten van het frame in. Invullen van beide type maten kan onduidelijkheid in de definiëring van de maten veroorzaken.",null,"Vyplňte prosím buď rozměry otvoru nebo rozměry rámu. Vyplnění obou typů rozměrů může způsobit nejednoznačnost definice rozměrů.","Please fill in either opening's dimensions or frame's dimensions. Filling in both types of dimensions could cause ambiguity in door specification.","Füllen Sie bitte entweder die Öffnungsmaße oder die Rahmenaußenmaße aus. Die Ausfüllung der beiden Maßentypen kann die Mehrdeutigkeit der Torspezifikation verursachen.","Proszę wpisać bądź wymiary otworu lub wymiary ramy. Wpisanie obu rodzajów wymiarów może spowodować niejednoznaczne zdefiniowanie wymiarów.","Vul ofwel de maten van de opening of de maten van het frame in. Invullen van beide type maten kan onduidelijkheid in de definiëring van de maten veroorzaken.","Veuillez saisir soit les dimensions de l’orifice, soit les dimensions du cadre. La saisie des deux types de dimensions pourrait en effet mener à des ambiguïtés concernant la définition des dimensions."]
[{"$nulls":6},"Aantal in de linkervleugel",null,"Počet v levém křídle","Quantity in left leaf","Stückzahl im linken Flügel","Ilość w lewym skrzydle","Aantal in de linkervleugel","Nombre dans le battant gauche"]
[{"$nulls":6},"Aantal in de rechtervleugel",null,"Počet v pravém křídle","Quantity in right leaf","Stückzahl im rechten Flügel","Ilość w prawym skrzydle","Aantal in de rechtervleugel","Nombre dans le battant droit"]
[{"$nulls":6},"MD 01",null,"MD 01","MD 01","MD 01","MD 01","MD 01","MD 01"]
[{"$nulls":6},"MD 02",null,"MD 02","MD 02","MD 02","MD 02","MD 02","MD 02"]
[{"$nulls":6},"MD 03",null,"MD 03","MD 03","MD 03","MD 03","MD 03","MD 03"]
[{"$nulls":6},"MD 04",null,"MD 04","MD 04","MD 04","MD 04","MD 04","MD 04"]
[{"$nulls":6},"MD 05",null,"MD 05","MD 05","MD 05","MD 05","MD 05","MD 05"]
[{"$nulls":6},"MD 06",null,"MD 06","MD 06","MD 06","MD 06","MD 06","MD 06"]
[{"$nulls":6},"MD 07",null,"MD 07","MD 07","MD 07","MD 07","MD 07","MD 07"]
[{"$nulls":6},"MD 08",null,"MD 08","MD 08","MD 08","MD 08","MD 08","MD 08"]
[{"$nulls":6},"MD 09",null,"MD 09","MD 09","MD 09","MD 09","MD 09","MD 09"]
[{"$nulls":6},"MD 10",null,"MD 10","MD 10","MD 10","MD 10","MD 10","MD 10"]
[{"$nulls":6},"MD 11",null,"MD 11","MD 11","MD 11","MD 11","MD 11","MD 11"]
[{"$nulls":6},"MD 12",null,"MD 12","MD 12","MD 12","MD 12","MD 12","MD 12"]
[{"$nulls":6},"Informatie over de visuele uitvoering van ManDoor",null,"Informace o vzhledu ManDoor","Information about design of ManDoor","Optische Ausführung der Nebentür","Informacje o wyglądzie ManDoor","Informatie over de visuele uitvoering van ManDoor","Informations relative au design de la porte ManDoor"]
[{"$nulls":6},"Zonder bovenlicht",null,"Bez nadsvětlíku","Without fixed top panel","Ohne Oberlicht","Bez nadświetla","Zonder bovenlicht","Sans imposte"]
[{"$nulls":6},"Met bovenlicht",null,"S nadsvětlíkem","Including fixed top panel","Mit Oberlicht","Z nadświetlem","Met bovenlicht","Avec imposte"]
[{"$nulls":6},"Deurveer/dranger",null,"Zavírač","Door spring","Türschließer","Samozamykacz","Deurveer/dranger","Ferme-porte"]
[{"$nulls":6},"Ja, met schuifarm",null,"Ano, s lištou","Yes, with sliding arm","Ja, mit Leiste","Tak, z listwą","Ja, met schuifarm","Avec bras coulissant"]
[{"$nulls":6},"Wanneer de wens er is om een deur er gelijk uit te laten zien met een andere deur, geef dan duidelijk aan voor welke deur (order/positie).",null,"V případě požadavku na pohledovou shodu s vedle stojícími vraty uveďte do poznámky informaci o vratech, se kterými má být tato pozice pohledově shodná.","In case of requirement for door alignment with other door please clearly specify for which door (order/position).","Wenn diese Position mit einer anderen Position ansichtsgleich gefertigt werden soll, muss man diese Information ausdrücklich bemerken.","W przypadku wymogu zgodności widoku z obok stojącą bramą, podaj w uwagach informacje o bramie, z którą musi być ta pozycja wizualnie taka sama.","Wanneer de wens er is om een deur er gelijk uit te laten zien met een andere deur, geef dan duidelijk aan voor welke deur (order/positie).","En cas des alignements des panneaux avec des portes attenants, notez cette information sur la commande avec lesquelles portes désirez-vous les alignements des panneaux."]
[{"$nulls":6},"niet mogelijk voor",null,"nelze pro","not possible for","nicht möglich für","nie można dla","niet mogelijk voor","pas disponible pour"]
[{"$nulls":6},"Elektrisch slot",null,"Elektrozámek","Electric lock","Elektrische Türöffner","Elektrozaczep","Elektrisch slot","Gâche électrique"]
[{"$nulls":6},"alleen voor 2LDKL02, 2LDKL05",null,"pouze pro 2LDKL02, 2LDKL05","only for 2LDKL02, 2LDKL05","nur für 2LDKL02, 2LDKL05","tylko 2LDKL02, 2LDKL05","alleen voor 2LDKL02, 2LDKL05","uniquement 2LDKL02, 2LDKL05"]
[{"$nulls":6},"alleen voor MDKL02, MDKL06",null,"pouze pro MDKL02, MDKL06","only for MDKL02, MDKL06","nur für MDKL02, MDKL06","tylko MDKL02, MDKL06","alleen voor MDKL02, MDKL06","uniquement MDKL02, MDKL06"]
[{"$nulls":6},"Deurkruk/deurkruk, schild, cilinder sleutel/sleutel, standaard-slot",null,"Klika/klika, štítek, vložka klíč/klíč, standardní zámek","Handle /handle, shield, cylindrical lock-key hole, standard lock ","Klinke/Klinke, Schild, Standardschloss","Klamka/klamka, tarczka, wkładka klucz/klucz, zamek standardowy ","Deurkruk/deurkruk, schild, cilinder sleutel/sleutel, standaard-slot","Poignée/poignée, plaquette, serrure standard/ cylindrique"]
[{"$nulls":6},"Vast handgreep/deurkruk, schild, cilinder sleutel/sleutel, standaard-slot",null,"Madlo/klika, štítek, vložka klíč/klíč, standardní zámek","Grip/handle, shield, cylindrical lock - key hole, standard lock","Knauf/Klinke, Schild, Standardschloss","Uchwyt/klamka, tarczka, wkładka klucz/klucz, zamek standardowy ","Vast handgreep/deurkruk, schild, cilinder sleutel/sleutel, standaard-slot","Bouton/poignée, plaquette, serrure standard/ cylindrique"]
[{"$nulls":6},"Deurkruk/deurkruk, schild, cilinder sleutel/sleutel, paniek slot",null,"Klika/klika, štítek, vložka klíč/klíč, panikový zámek","Handle /handle, shield, cylindrical lock-key hole, panic lock","Klinke/Klinke, Schild, Panikschloss","Klamka/klamka, tarczka, wkładka klucz/klucz, zamek antypaniczny","Deurkruk/deurkruk, schild, cilinder sleutel/sleutel, paniek slot","Poignée/poignée, plaquette, serrure anti-panique"]
[{"$nulls":6},"Vast handgreep/deurkruk, cilinder sleutel/sleutel, schild, paniek slot",null,"Madlo/klika, štítek, vložka klíč/klíč, panikový zámek","Grip/handle, shield, cylindrical lock– key hole, panic lock","Knauf/Klinke, Schild, Panikschloss","Uchwyt/klamka, tarczka, wkładka klucz/klucz, zamek antypaniczny","Vast handgreep/deurkruk, cilinder sleutel/sleutel, schild, paniek slot","Bouton/poignée, plaquette, serrure anti-panique"]
[{"$nulls":6},"Deurkruk/paniek balk, schild, cilinder sleutel/sleutel",null,"Klika/panikové kování, štítek, vložka klíč/klíč","Handle /panic exit bar, shield, cylindrical lock-key hole, panic lock","Klinke/Panikbeschlag—Stange, Schild","Klamka/okucia antypaniczne, tarczka, wkładka klucz/klucz","Deurkruk/paniek balk, schild, cilinder sleutel/sleutel","Poignée/monture anti-panique, plaquette,"]
[{"$nulls":6},"Vast handgreep/paniek balk, schild, cilinder sleutel/sleutel",null,"Madlo/panikové kování, štítek, vložka klíč/klíč","Grip/panic exit bar, shield, cylindrical lock-key hole, panic lock","Knauf/Panikbeschlag—Stange, Schild","Uchwyt/okucia antypaniczne, szyld, wkładka klucz/klucz","Vast handgreep/paniek balk, schild, cilinder sleutel/sleutel","Bouton/monture anti-panique, plaquette,"]
[{"$nulls":6},"Deurkruk/deurkruk, schild, cilinder sleutel/sleutel, 3 puntslot",null,"Klika/klika, štítek, vložka klíč/klíč, 3bodový zámek","Handle /handle, shield, cylindrical lock-key hole, 3-point lock","Klinke/Klinke, Schild, 3-fachschloss","Klamka/klamka, tarczka, wkładka klucz/klucz, zamek trzypunktowy","Deurkruk/deurkruk, schild, cilinder sleutel/sleutel, 3 puntslot","Poignée / poignée, plaquette, serrure 3 points"]
[{"$nulls":6},"Vast handgreep/deurkruk, schild, cilinder sleutel/sleutel, 3 puntslot",null,"Madlo/klika, štítek, vložka klíč/klíč, 3bodový zámek","Grip /handle, shield, cylindrical lock-key hole, 3-point lock","Knauf/Klinke, Schild, 3-fachschloss","Uchwyt/klamka, tarczka, wkładka klucz/klucz, zamek trzypunktowy","Vast handgreep/deurkruk, schild, cilinder sleutel/sleutel, 3 puntslot","Bouton/poignée, plaquette, serrure 3 points"]
[{"$nulls":6},"Afmetingen kunnen variëren in het geval er wensen zijn voor gelijkenis met sectionaaldeur",null,"rozměr se může lišit při požadavku pohledové shody s vraty","dimensions can vary in case of requirement for alignment with sectional door","der Maß kann bei Ansichsgleichheit von der Standardausführung abweichen","Wymiar może się różnić w przypadku wymogu zgodności widoku z bramą","Afmetingen kunnen variëren in het geval er wensen zijn voor gelijkenis met sectionaaldeur","Les dimensions se peuvent variées en cas de la demande des alignements des panneaux"]
[{"$nulls":6},"Afmeting mm (WxH)",null,"Rozměry mm (WxH)","Dimension mm (WxH)","Maße mm (BxH)","Wymiar mm (WxH)","Afmeting mm (WxH)","Dimensions mm (WxH)"]
[{"$nulls":6},"Ontwerp van deurblad",null,"Design křídla","Design of door leaf","Design des Torflügels","Design skrzydła drzwi","Ontwerp van deurblad","Design de l'aile de porte"]
[{"$nulls":6},"Brede eindkappen/dubbele zijscharnieren",null,"Široké boční plechy/dvojité  boční panty","Wide end caps/double side hinges","Breite Endkappen / Doppelscharniere","Szerokie blachy boczne/podwójne zawiasy boczne","Brede eindkappen/dubbele zijscharnieren","Cornière de finition large/Pentures latérales dble"]
[{"$nulls":6},"Ja (standaard voor B>=5000 mm)",null,"Ano (standard pro W>=5000 mm)","Yes, (default for W>=5000 mm)","Ja (Standard für Torbreite W>=5000 mm)","Tak (standard dla W>=5000 mm)","Ja (standaard voor B>=5000 mm)","Oui (standard pour W>=5000 mm)"]
[{"$nulls":6},"Ja (standaard voor B>=5001 mm)",null,"Ano (standard pro W>=5001 mm)","Yes, (default for W>=5001 mm)","Ja (Standard für Torbreite W>=5001 mm)","Tak (standard dla W>=5001 mm)","Ja (standaard voor B>=5001 mm)","Oui (standard pour W>=5001 mm)"]
[{"$nulls":6},"Vergrendeling gesloten deurblad",null,"Aretace zavřeného pasivního křídla","Securing of closed passive leaf","Fixierung des Standflügels","Blokowanie zamkniętego skrzydła pasywnego","Vergrendeling gesloten deurblad","Type d´arrêt de battant fermé (passif)"]
[{"$nulls":6},"Grendel (boven en beneden)",null,"Zástrč dole a nahoře (standard do 2250 mm)","Sliding bolt top and bottom","Treibriegel oben + unten (Standard bis 2250)","Rygiel (w górę i w dół)","Grendel (boven en beneden)","Barrière haut et bas (standard dans 2250 mm)"]
[{"$nulls":6},"Kantschuifvergrendeling in het midden",null,"Skrytá rozvora (standard od 2251 mm)","Hidden centre catch with rods","Falztreibriegel (Standard ab 2251mm)","Ukryty rozstaw osi (standard od 2251 mm)","Kantschuifvergrendeling in het midden","Verrou à  entailler (standard depuis 2251 mm)"]
[{"$nulls":6},0,null,"Vratová rozvora (baskule)","Centre catch with rods"]
[{"$nulls":6},"Version of profiles",null,"Provedení profilů","Version of profiles","Ausführung der Profile","Wykonanie profili","Version of profiles","Réalisation des profils"]
[{"$nulls":6},"45mm, niet gebroken koude brug",null,"45mm, bez přeruš.tepel.mostu","45mm, non thermal system","45mm, ohne thermische Trennung","45mm, bez przegrody termicznej","45mm, niet gebroken koude brug","45mm,sans rupt.du pont therm."]
[{"$nulls":6},"60mm, gebroken koude brug",null,"60mm, přerušený tepelný most","60mm, broken thermal bridge","60mm, mit thermischer Trennung","60mm, z przegrodą termiczną","60mm, gebroken koude brug","60mm,rupteur du pont thermique"]
[{"$nulls":6},"alleen voor",null,"pouze pro","only for","nur für","tylko","alleen voor","uniquement"]

{"sheet":"Selections","index":2,"n_rows":85,"n_cols":56,"rows_kept":85,"hidden":true}
["Výběr jazyka",null,"Výběry pro INDY"]
["CZ",null,{"$f":"Translation!A95","v":0},{"$f":"Translation!A106","v":0},"Okna INDY",{"$f":"Translation!A92","v":0},{"$f":"Translation!A93","v":0},{"$f":"Translation!A94","v":0},{"$f":"Translation!A163","v":0},{"$f":"Translation!A196","v":0},{"$nulls":3},{"$f":"Translation!A144&\" \"&Translation!A11","v":" "}]
["EN",{"$nulls":12},0,3]
["DE",null,{"$f":"Translation!A96","v":0},{"$f":"Translation!A108","v":0},{"$f":"Translation!A76","v":0},{"$f":"Translation!A118","v":0},{"$f":"Translation!A125","v":0},{"$f":"Translation!A127","v":0},{"$f":"Translation!A164","v":0},{"$f":"Translation!A197","v":0},{"$nulls":3},1871,4]
["PL",null,{"$f":"Translation!A97","v":0},{"$f":"Translation!A109","v":0},{"$f":"Translation!A77","v":0},{"$f":"Translation!A119","v":0},{"$f":"Translation!A126","v":0},{"$f":"Translation!A128","v":0},{"$f":"Translation!A165","v":0},{"$f":"Translation!A198","v":0},{"$nulls":3},2501,5]
["NL",null,{"$f":"Translation!A98","v":0},{"$f":"Translation!A107","v":0},{"$f":"Translation!A80","v":0},{"$f":"Translation!A120","v":0},{"$nulls":3},{"$f":"Translation!A199","v":0},{"$nulls":3},3101,6]
["FR",null,{"$f":"Translation!A99","v":0},null,{"$f":"Translation!A79","v":0},{"$f":"Translation!A121","v":0},{"$nulls":3},{"$f":"Translation!A200","v":0},{"$nulls":3},3701,7]
[null,null,{"$f":"Translation!A100","v":0},null,{"$f":"Translation!A78","v":0},{"$f":"Translation!A122","v":0},{"$nulls":7},4311,8]
["Ano",null,{"$f":"Translation!A101","v":0},null,{"$f":"Translation!A81","v":0},{"$f":"Translation!A123","v":0},{"$nulls":7},4921,9]
["Ne",null,{"$f":"Translation!A102","v":0},null,{"$f":"Translation!A82","v":0},{"$f":"Translation!A124","v":0},{"$nulls":7},5531,10]
[null,null,{"$f":"Translation!A103","v":0},null,{"$f":"Translation!A83","v":0},{"$nulls":8},6141,11]
[{"$nulls":4},{"$f":"Translation!A84","v":0}]
[{"$nulls":4},{"$f":"Translation!A85","v":0}]
[]
[null,null,"Výběry pro GUARDY"]
[null,null,{"$f":"Translation!B95","v":0},{"$f":"Translation!B106","v":0},{"$f":"Translation!B75","v":0},{"$f":"Translation!B92","v":0},{"$f":"Translation!B93","v":0},{"$f":"Translation!B94","v":0},{"$f":"Translation!B163","v":0},{"$f":"Translation!B196","v":0}]
[]
[null,null,{"$f":"Translation!B96","v":0},{"$f":"Translation!B107","v":0},{"$f":"Translation!B86","v":0},{"$f":"Translation!B118","v":0},{"$f":"Translation!B125","v":0},{"$f":"Translation!B127","v":0},{"$f":"Translation!B164","v":0},{"$f":"Translation!B197","v":0}]
[null,null,{"$f":"Translation!B97","v":0},{"$f":"Translation!B110","v":0},{"$f":"Translation!B87","v":0},{"$f":"Translation!B119","v":0},{"$f":"Translation!B126","v":0},{"$f":"Translation!B128","v":0},{"$f":"Translation!B165","v":0},{"$f":"Translation!B198","v":0}]
[null,null,{"$f":"Translation!B98","v":0},{"$f":"Translation!B111","v":0},{"$f":"Translation!B88","v":0},{"$f":"Translation!B120","v":0},{"$nulls":3},{"$f":"Translation!B201","v":0}]
[null,null,{"$f":"Translation!B100","v":0},{"$f":"Translation!B108","v":0},{"$f":"Translation!B89","v":0},{"$f":"Translation!B121","v":0}]
[null,null,{"$f":"Translation!B103","v":0},{"$f":"Translation!B109","v":0},{"$f":"Translation!B79","v":0},{"$f":"Translation!B122","v":0}]
[null,null,{"$f":"Translation!B101","v":0},{"$f":"Translation!B112","v":0},{"$f":"Translation!B90","v":0},{"$f":"Translation!B123","v":0}]
[null,null,{"$f":"Translation!B102","v":0},{"$f":"Translation!B113","v":0},{"$f":"Translation!B81","v":0},{"$f":"Translation!B124","v":0}]
[null,null,{"$f":"Translation!B104","v":0},null,{"$f":"Translation!B91","v":0}]
[null,null,{"$f":"Translation!B105","v":0},null,{"$f":"Translation!B82","v":0}]
[{"$nulls":4},{"$f":"Translation!B78","v":0}]
[{"$nulls":4},{"$f":"Translation!B80","v":0}]
[{"$nulls":4},{"$f":"Translation!B76","v":0}]
[{"$nulls":4},{"$f":"Translation!B77","v":0}]
[]
[null,null,"Výběry pro EXT"]
[null,null,{"$f":"Translation!C95","v":0},{"$f":"Translation!C106","v":0},{"$f":"Translation!C75","v":0},{"$f":"Translation!C92","v":0},{"$f":"Translation!C93","v":0},{"$f":"Translation!C94","v":0},{"$f":"Translation!C163","v":0},{"$f":"Translation!C196","v":0}]
[]
[null,null,{"$f":"Translation!C96","v":0},{"$f":"Translation!C107","v":0},{"$f":"Translation!C86","v":0},{"$f":"Translation!C118","v":0},{"$f":"Translation!C125","v":0},{"$f":"Translation!C127","v":0},{"$f":"Translation!C164","v":0},{"$f":"Translation!C197","v":0}]
[null,null,{"$f":"Translation!C97","v":0},{"$f":"Translation!C110","v":0},{"$f":"Translation!C87","v":0},{"$f":"Translation!C119","v":0},{"$f":"Translation!C126","v":0},{"$f":"Translation!C128","v":0},{"$f":"Translation!C165","v":0},{"$f":"Translation!C198","v":0}]
[null,null,{"$f":"Translation!C100","v":0},{"$f":"Translation!C111","v":0},{"$f":"Translation!C88","v":0},{"$f":"Translation!C120","v":0},{"$nulls":3},{"$f":"Translation!C201","v":0}]
[null,null,{"$f":"Translation!C101","v":0},{"$f":"Translation!C108","v":0},{"$f":"Translation!C89","v":0},{"$f":"Translation!C121","v":0}]
[null,null,{"$f":"Translation!C102","v":0},{"$f":"Translation!C109","v":0},{"$f":"Translation!C79","v":0},{"$f":"Translation!C122","v":0}]
[null,null,{"$f":"Translation!C104","v":0},{"$f":"Translation!C112","v":0},{"$f":"Translation!C90","v":0},{"$f":"Translation!C123","v":0}]
[null,null,{"$f":"Translation!C105","v":0},{"$f":"Translation!C113","v":0},{"$f":"Translation!C81","v":0},{"$f":"Translation!C124","v":0}]
[{"$nulls":4},{"$f":"Translation!C91","v":0}]
[{"$nulls":4},{"$f":"Translation!C82","v":0}]
[{"$nulls":4},{"$f":"Translation!C78","v":0}]
[{"$nulls":4},{"$f":"Translation!C80","v":0}]
[{"$nulls":4},{"$f":"Translation!C76","v":0}]
[{"$nulls":4},{"$f":"Translation!C77","v":0}]
[]
[null,null,"Výběry pro MD NG"]
[{"$nulls":4},{"$f":"Translation!G75","v":"Vensters"},{"$f":"Translation!G92","v":"Full Vision-sectie"}]
[]
[{"$nulls":4},{"$f":"Translation!G86","v":"204; Hoekig 3"},{"$f":"Translation!G118","v":"250; Dubbelwandige beglazing SAN UV"}]
[{"$nulls":4},{"$f":"Translation!G87","v":"206; Hoekig 4"},{"$f":"Translation!G119","v":"220; Enkelwandige beglazing SAN UV"}]
[{"$nulls":4},{"$f":"Translation!G88","v":"210; Hoekig 7"},{"$f":"Translation!G120","v":"260; Dubbelwandige polycarbonaatbeglazing"}]
[{"$nulls":3},"672; 9010/9010",{"$f":"Translation!G89","v":"208; Hoekig 5"},{"$f":"Translation!G121","v":"230; Enkelwandige polycarbonaatbeglazing"}]
[{"$nulls":4},{"$f":"Translation!G79","v":"216; Hoekig 9"},{"$f":"Translation!G122","v":"250.10; Dubbelwandige beglazing SAN UV, 1x ANTI SCRATCH"}]
[{"$nulls":4},{"$f":"Translation!G90","v":"202; Hoekig 10"},{"$f":"Translation!G123","v":"250.10; Dubbelwandige beglazing SAN UV, 2x ANTI SCRATCH"}]
[{"$nulls":4},{"$f":"Translation!G81","v":"218; Hoekig 1 ROESTVRIJ"},{"$f":"Translation!G124","v":"250.Co; Dubbelwandige beglazing SAN UV; kleurig"}]
[{"$nulls":4},{"$f":"Translation!G91","v":"219; Hoekig roestvrij"}]
[{"$nulls":4},{"$f":"Translation!G82","v":"215; Rond ROESTVRIJ"}]
[{"$nulls":4},{"$f":"Translation!G78","v":"207; Hoekig 2"}]
[{"$nulls":4},{"$f":"Translation!G80","v":"217; Rond"}]
[{"$nulls":4},{"$f":"Translation!G76","v":"203; Ovaal 1, CLICK"}]
[{"$nulls":4},{"$f":"Translation!G77","v":"205; Hoekig 1, CLICK"}]
[]
[null,null,"Výběry pro WD NG (2LD - double leaf door)"]
[{"$nulls":4},{"$f":"Translation!H75","v":0},{"$f":"Translation!H92","v":0}]
[]
[{"$nulls":4},{"$f":"Translation!H86","v":0},{"$f":"Translation!H118","v":0}]
[{"$nulls":4},{"$f":"Translation!H87","v":0},{"$f":"Translation!H119","v":0}]
[{"$nulls":4},{"$f":"Translation!H88","v":0},{"$f":"Translation!H120","v":0}]
[{"$nulls":4},{"$f":"Translation!H89","v":0},{"$f":"Translation!H121","v":0}]
[{"$nulls":4},{"$f":"Translation!H79","v":0},{"$f":"Translation!H122","v":0}]
[{"$nulls":4},{"$f":"Translation!H90","v":0},{"$f":"Translation!H123","v":0}]
[{"$nulls":4},{"$f":"Translation!H81","v":0},{"$f":"Translation!H124","v":0}]
[{"$nulls":4},{"$f":"Translation!H91","v":0}]
[{"$nulls":4},{"$f":"Translation!H82","v":0}]
[{"$nulls":4},{"$f":"Translation!H78","v":0}]
[{"$nulls":4},{"$f":"Translation!H80","v":0}]
[{"$nulls":4},{"$f":"Translation!H76","v":0}]
[{"$nulls":4},{"$f":"Translation!H77","v":0}]
[]
[]
[]
[{"$nulls":55},1649]